bitfinex/quotes_SOLUSD_20250420
["timestamp","ask_amount","ask_price","bid_price","bid_amount"]
[1745131100981,33.3743127,140.46,140.41,7.60519923]
[1745131102485,25.76911347,140.46,140.41,7.60519923]
[1745131102787,33.3743127,140.46,140.41,7.60519923]
[1745131104277,25.76911347,140.46,140.41,7.60519923]
[1745131106704,33.3743127,140.46,140.41,7.60519923]
[1745131109394,7.11946461,140.46,140.42,7.60519923]
[1745131111297,0.03,140.47,140.44,7.60519923]
[1745131111596,7.14909873,140.47,140.44,7.60519923]
[1745131112093,0.03,140.47,140.45,7.60519923]
[1745131114397,0.03,140.47,140.44,7.60519923]
[1745131115894,0.03,140.47,140.45,7.60519923]
[1745131116899,0.03,140.47,140.44,7.60519923]
[1745131120086,0.03,140.47,140.43,33.60519923]
[1745131120982,0.03,140.47,140.42,13.96]
[1745131120983,7.63519923,140.47,140.42,13.96]
[1745131121204,7.60519923,140.46,140.42,13.96]
[1745131121900,7.11997152,140.45,140.42,13.96]
[1745131122202,14.72517075,140.45,140.4,7.60519923]
[1745131123107,7.11997152,140.45,140.41,7.60519923]
[1745131123287,7.11997152,140.45,140.41,33.60519923]
[1745131128005,7.11997152,140.45,140.41,26.0]
[1745131128196,7.11997152,140.45,140.41,33.60519923]
[1745131131828,7.11997152,140.45,140.41,26.0]
[1745131133403,7.11997152,140.45,140.41,33.60519923]
[1745131135512,7.11997152,140.45,140.43,7.60519923]
[1745131137331,25.79860664,140.47,140.43,7.60519923]
[1745131138430,7.14895778,140.47,140.43,7.60519923]
[1745131140034,7.14895778,140.47,140.42,7.60519923]
[1745131140424,14.75415701,140.47,140.42,7.60519923]
[1745131141616,7.14895778,140.47,140.42,7.60519923]
[1745131143338,14.75415701,140.47,140.42,7.60519923]
[1745131143741,14.75415701,140.47,140.41,26.0]
[1745131144038,14.75415701,140.47,140.42,7.60519923]
[1745131148946,7.14895778,140.47,140.42,7.60519923]
[1745131149352,14.75415701,140.47,140.42,7.60519923]
[1745131150440,26.25484809,140.46,140.41,26.0]
[1745131151349,7.11997152,140.45,140.41,26.0]
[1745131151848,7.11997152,140.45,140.41,33.60519923]
[1745131154055,0.03,140.47,140.44,7.60519923]
[1745131154261,0.03,140.47,140.46,7.60519923]
[1745131161441,0.03,140.47,140.46,35.74103861]
[1745131170559,0.03,140.47,140.46,33.60519923]
[1745131174593,0.03,140.47,140.45,7.60519923]
[1745131174964,0.03,140.47,140.44,47.46519923]
[1745131175163,0.03,140.47,140.45,7.60519923]
[1745131177286,0.03,140.47,140.46,7.60519923]
[1745131185086,0.03,140.47,140.44,47.46519923]
[1745131186174,0.03,140.47,140.45,7.60519923]
[1745131188286,0.03,140.47,140.46,7.60519923]
[1745131191989,0.03,140.47,140.46,9.74103861]
[1745131200487,0.03,140.47,140.44,95.16]
[1745131200691,0.03,140.47,140.46,26.0]
[1745131202906,0.03,140.47,140.44,13.86]
[1745131203607,7.63519923,140.47,140.44,13.86]
[1745131203786,7.60519923,140.45,140.4,265.42519923]
[1745131204184,7.60519923,140.45,140.4,291.42519923]
[1745131204803,14.72466384,140.46,140.4,291.42519923]
[1745131206187,14.72466384,140.46,140.41,7.60519923]
[1745131207798,7.11946461,140.46,140.43,7.60519923]
[1745131210009,7.14895778,140.47,140.43,7.60519923]
[1745131211014,7.60519923,140.46,140.42,7.60519923]
[1745131211709,14.75415701,140.47,140.42,7.60519923]
[1745131212712,14.72517075,140.45,140.4,39.84]
[1745131213009,22.91097075,140.45,140.4,21.44519923]
[1745131214817,22.91097075,140.45,140.41,7.60519923]
[1745131220724,22.91097075,140.45,140.4,21.44519923]
[1745131223322,26.25484809,140.44,140.4,13.84]
[1745131223626,18.64964886,140.44,140.4,21.44519923]
[1745131224000,7.60519923,140.42,140.37,7.60519923]
[1745131224400,7.60519923,140.41,140.36,21.52819923]
[1745131225404,7.12250712,140.4,140.36,21.52819923]
[1745131229910,7.12250712,140.4,140.37,7.60519923]
[1745131230523,7.12210548,140.41,140.38,7.60519923]
[1745131231529,101.04964886,140.44,140.39,33.60519923]
[1745131231728,18.64964886,140.44,140.4,7.60519923]
[1745131231928,7.12106306,140.43,140.36,16.06030246]
[1745131232231,14.72626229,140.43,140.38,7.60519923]
[1745131233225,26.25484809,140.42,140.38,7.60519923]
[1745131233426,26.25484809,140.42,140.36,39.923]
[1745131233626,26.25484809,140.42,140.38,7.60519923]
[1745131233826,7.12199985,140.41,140.38,7.60519923]
[1745131241334,7.12199985,140.41,140.39,7.60519923]
[1745131241728,20.27864886,140.39,140.36,0.063]
[1745131242029,26.25484809,140.37,140.35,0.063]
[1745131242221,32.85093194,140.39,140.35,0.063]
[1745131242222,7.9797,140.39,140.35,0.063]
[1745131242419,15.58489923,140.39,140.35,0.063]
[1745131242627,7.9797,140.39,140.35,0.063]
[1745131242826,26.25484809,140.36,140.35,0.063]
[1745131243127,26.25484809,140.36,140.34,0.063]
[1745131243427,14.73024376,140.35,140.34,0.063]
[1745131246534,7.12352186,140.38,140.34,0.063]
[1745131246733,7.12352186,140.38,140.35,7.60519923]
[1745131247527,7.12352186,140.38,140.34,7.66819923]
[1745131248822,7.12352186,140.38,140.35,7.60519923]
[1745131249435,7.12352186,140.38,140.34,0.063]
[1745131249436,7.12250712,140.4,140.37,7.60519923]
[1745131250440,7.12250712,140.4,140.36,7.60519923]
[1745131250833,32.53397415,140.4,140.35,7.60519923]
[1745131252738,32.53397415,140.4,140.34,0.063]
[1745131252939,24.92877492,140.4,140.36,7.60519923]
[1745131255444,24.92877492,140.4,140.35,7.60519923]
[1745131257346,32.53397415,140.4,140.35,7.60519923]
[1745131262153,32.53397415,140.4,140.34,0.063]
[1745131262347,32.53397415,140.4,140.35,7.60519923]
[1745131263048,32.53397415,140.4,140.34,0.063]
[1745131263255,32.53397415,140.4,140.35,7.60519923]
[1745131263437,7.60519923,140.38,140.34,0.063]
[1745131264753,14.72922858,140.37,140.34,0.063]
[1745131265056,26.25484809,140.36,140.34,0.063]
[1745131266349,26.25484809,140.35,140.34,0.063]
[1745131266762,33.37989262,140.35,140.34,0.063]
[1745131266964,33.37989262,140.35,140.34,1e-08]
[1745131280077,25.77469339,140.35,140.34,1e-08]
[1745131281882,7.12301445,140.39,140.34,1e-08]
[1745131282085,18.64964886,140.38,140.34,7.60519924]
[1745131282378,24.93055059,140.39,140.34,7.60519924]
[1745131282585,24.93055059,140.39,140.35,7.60519923]
[1745131283073,32.53574982,140.39,140.34,7.60519924]
[1745131283381,7.60519923,140.38,140.34,1e-08]
[1745131283992,7.12402935,140.37,140.34,1e-08]
[1745131284784,32.53930195,140.37,140.34,1e-08]
[1745131286082,7.60519923,140.36,140.34,1e-08]
[1745131286957,18.64964886,140.35,140.34,1e-08]
[1745131287789,26.25484809,140.35,140.34,1e-08]
[1745131289489,33.37989262,140.35,140.34,1e-08]
[1745131290276,59.37989262,140.35,140.34,1e-08]
[1745131301280,141.77989262,140.35,140.34,1e-08]
[1745131301975,115.77989262,140.35,140.34,1e-08]
[1745131303280,26.0,140.32,140.31,1e-08]
[1745131303590,52.25484809,140.32,140.31,1e-08]
[1745131303995,26.25484809,140.3,140.29,0.063]
[1745131304782,33.38243183,140.3,140.29,0.063]
[1745131305497,33.38243183,140.3,140.29,1e-08]
[1745131307000,18.64964886,140.29,140.28,1e-08]
[1745131307176,26.25484809,140.29,140.28,1e-08]
[1745131307582,18.64964886,140.29,140.28,1e-08]
[1745131308110,26.25484809,140.29,140.28,1e-08]
[1745131308903,33.38293989,140.29,140.28,1e-08]
[1745131314305,25.77774066,140.29,140.28,1e-08]
[1745131314883,33.38293989,140.29,140.28,1e-08]
[1745131315608,25.77774066,140.29,140.28,1e-08]
[1745131316204,33.38293989,140.29,140.28,1e-08]
[1745131316492,25.77774066,140.29,140.28,1e-08]
[1745131323414,7.1280918,140.29,140.28,1e-08]
[1745131324409,26.0,140.31,140.28,1e-08]
[1745131324410,7.12758374,140.3,140.28,1e-08]
[1745131333722,24.94654311,140.3,140.26,7.16819924]
[1745131334221,7.12859994,140.28,140.26,7.60519923]
[1745131336426,7.12859994,140.28,140.25,1.6891]
[1745131336601,7.12859994,140.28,140.25,9.29429923]
[1745131336801,7.12859994,140.28,140.26,7.60519923]
[1745131337331,7.12859994,140.28,140.25,7.66819923]
[1745131338707,7.12859994,140.28,140.26,7.60519923]
[1745131340918,7.12859994,140.28,140.25,7.66819923]
[1745131341123,18.64964886,140.27,140.25,0.063]
[1745131341509,7.12961642,140.26,140.25,0.063]
[1745131341707,25.77926528,140.26,140.25,0.063]
[1745131345616,25.77926528,140.26,140.23,7.60519923]
[1745131346234,18.64964886,140.25,140.19,13.9]
[1745131346419,18.64964886,140.25,140.22,7.60519923]
[1745131346614,18.64964886,140.25,140.23,7.60519923]
[1745131347232,18.64964886,140.25,140.19,13.9]
[1745131347531,18.64964886,140.25,140.23,7.60519923]
[1745131347920,7.1306332,140.24,140.23,7.60519923]
[1745131348117,7.1306332,140.24,140.19,13.9]
[1745131348327,18.64964886,140.23,140.19,13.9]
[1745131348635,18.64964886,140.23,140.2,7.60519923]
[1745131349012,18.64964886,140.23,140.19,13.9]
[1745131349226,18.64964886,140.23,140.16,30.42079692]
[1745131349425,18.64964886,140.23,140.2,7.60519923]
[1745131349931,7.13165026,140.22,140.2,7.60519923]
[1745131350325,7.13165026,140.22,140.19,7.60519923]
[1745131350540,7.13165026,140.22,140.2,7.60519923]
[1745131351815,7.13165026,140.22,140.21,7.60519923]
[1745131352216,7.13165026,140.22,140.17,2.85361302]
[1745131352217,7.13165026,140.22,140.2,7.60519923]
[1745131354438,18.64964886,140.21,140.16,30.42079692]
[1745131354638,18.64964886,140.21,140.2,7.60519923]
[1745131356144,82.4,140.23,140.2,7.60519923]
[1745131356443,7.13174655,140.22,140.21,7.60519923]
[1745131357650,25.78139541,140.22,140.2,7.60519923]
[1745131359650,25.78180776,140.21,140.2,7.60519923]
[1745131363647,25.78180776,140.21,140.16,30.42079692]
[1745131363857,25.78180776,140.21,140.19,7.60519923]
[1745131365428,25.78180776,140.21,140.2,7.60519923]
[1745131372760,25.78180776,140.21,140.16,30.42079692]
[1745131372942,25.78180776,140.21,140.2,7.60519923]
[1745131375553,25.78180776,140.21,140.16,30.42079692]
[1745131375738,25.78180776,140.21,140.15,15.4128]
[1745131376058,25.78180776,140.21,140.19,7.60519923]
[1745131376243,25.78180776,140.21,140.15,15.4128]
[1745131376443,25.78180776,140.21,140.19,7.60519923]
[1745131378769,25.78180776,140.21,140.19,5.60519923]
[1745131379264,25.78180776,140.21,140.2,7.60519923]
[1745131379553,25.78180776,140.21,140.15,18.26687482]
[1745131379760,25.78180776,140.21,140.15,15.4128]
[1745131380256,25.78180776,140.21,140.18,7.60519923]
[1745131380855,50.00450502,140.21,140.15,13.9]
[1745131381055,82.4,140.2,140.16,7.60519923]
[1745131381933,18.64964886,140.18,140.16,7.60519923]
[1745131382888,18.64964886,140.18,140.17,7.60519923]
[1745131383365,7.13368526,140.18,140.17,7.60519923]
[1745131384061,7.13266761,140.2,140.17,7.60519923]
[1745131384250,25.78231647,140.2,140.19,7.60519923]
[1745131384550,25.78231647,140.2,140.18,7.60519923]
[1745131384551,18.64964886,140.19,140.18,7.60519923]
[1745131384751,7.13266761,140.2,140.18,7.60519923]
[1745131384957,7.13266761,140.2,140.14,0.063]
[1745131385255,7.13266761,140.2,140.18,7.60519923]
[1745131386950,7.13266761,140.2,140.14,0.063]
[1745131387149,7.13266761,140.2,140.18,7.60519923]
[1745131389671,43.61398551,140.2,140.17,7.60519923]
[1745131389865,43.61398551,140.2,140.14,0.063]
[1745131390069,45.12698551,140.2,140.16,7.60519923]
[1745131392783,18.64964886,140.19,140.15,7.60519923]
[1745131392953,18.64964886,140.19,140.14,0.063]
[1745131393460,101.04964886,140.19,140.15,7.60519923]
[1745131393883,101.04964886,140.19,140.14,0.063]
[1745131394086,108.65484809,140.19,140.15,7.60519923]
[1745131394375,108.65484809,140.19,140.14,0.063]
[1745131394553,108.65484809,140.19,140.14,7.66819923]
[1745131394985,7.13368526,140.18,140.14,7.66819923]
[1745131395278,7.13368526,140.18,140.14,0.063]
[1745131395467,7.13368526,140.18,140.14,7.66819923]
[1745131396189,7.13368526,140.18,140.14,0.063]
[1745131396377,7.13368526,140.18,140.14,7.66819923]
[1745131396682,7.13368526,140.18,140.15,7.60519923]
[1745131397764,89.53368526,140.18,140.15,7.60519923]
[1745131399596,89.53368526,140.18,140.14,7.66819923]
[1745131399956,89.53368526,140.18,140.15,7.60519923]
[1745131400765,89.53368526,140.18,140.15,5.60519923]
[1745131402973,89.53368526,140.18,140.14,0.063]
[1745131403283,89.53368526,140.18,140.15,7.60519923]
[1745131403481,89.53368526,140.18,140.14,0.063]
[1745131403675,89.53368526,140.18,140.15,7.60519923]
[1745131404468,89.53368526,140.18,140.14,0.063]
[1745131404865,89.53368526,140.18,140.15,7.60519923]
[1745131405065,89.53368526,140.18,140.14,0.063]
[1745131405296,89.53368526,140.18,140.15,7.60519923]
[1745131406092,89.53368526,140.18,140.14,0.063]
[1745131406277,108.18333412,140.18,140.17,7.60519923]
[1745131406591,25.78333412,140.18,140.17,7.60519923]
[1745131408282,25.78333412,140.18,140.16,7.60519923]
[1745131410602,25.78333412,140.18,140.17,7.60519923]
[1745131411588,18.64964886,140.2,140.17,7.60519923]
[1745131411891,18.64964886,140.2,140.19,7.60519923]
[1745131412903,18.64964886,140.21,140.19,7.60519923]
[1745131413099,82.4,140.22,140.2,7.60519923]
[1745131413401,101.04964886,140.22,140.21,7.60519923]
[1745131414574,101.04964886,140.22,140.16,47.15460366]
[1745131414778,18.64964886,140.22,140.21,7.60519923]
[1745131418599,18.64964886,140.22,140.16,47.15460669]
[1745131418789,18.64964886,140.22,140.2,7.60519923]
[1745131419907,18.64964886,140.21,140.16,44.30079692]
[1745131420208,18.64964886,140.22,140.19,7.60519923]
[1745131421209,18.64964886,140.22,140.17,13.88]
[1745131421506,18.64964886,140.22,140.19,7.60519923]
[1745131423814,18.64964886,140.22,140.2,7.60519923]
[1745131424013,101.04964886,140.22,140.2,7.60519923]
[1745131424907,101.04964886,140.22,140.17,13.88]
[1745131425207,101.04964886,140.22,140.2,7.60519923]
[1745131425409,101.04964886,140.22,140.19,7.60519923]
[1745131425987,101.04964886,140.22,140.18,7.60519923]
[1745131426186,101.04964886,140.22,140.19,7.60519923]
[1745131426596,101.04964886,140.22,140.17,13.88]
[1745131426896,101.04964886,140.22,140.19,7.60519923]
[1745131429816,82.4,140.21,140.19,7.60519923]
[1745131430117,82.4,140.21,140.18,7.60519923]
[1745131430792,82.4,140.21,140.17,13.88]
[1745131430993,7.8234,140.19,140.14,0.063]
[1745131431197,90.2234,140.19,140.14,0.063]
[1745131431501,90.2234,140.19,140.16,7.60519923]
[1745131431908,18.64964886,140.17,140.16,7.60519923]
[1745131432235,18.64964886,140.17,140.14,0.063]
[1745131432521,18.64964886,140.17,140.15,7.60519923]
[1745131434024,7.1345642,140.17,140.14,0.063]
[1745131434618,7.1345642,140.17,140.15,7.60519923]
[1745131436826,7.1345642,140.17,140.14,0.063]
[1745131437121,7.1345642,140.17,140.15,7.60519923]
[1745131439118,7.1345642,140.17,140.14,7.66819923]
[1745131440017,7.1345642,140.17,140.14,0.063]
[1745131440329,7.1345642,140.17,140.14,7.66819923]
[1745131441036,101.04964886,140.16,140.14,0.063]
[1745131441200,33.8234,140.19,140.14,0.063]
[1745131441201,108.18486113,140.15,140.14,0.063]
[1745131441526,115.79006036,140.15,140.14,0.063]
[1745131441727,108.18486113,140.15,140.14,0.063]
[1745131442209,18.64964886,140.14,140.13,2.3268202]
[1745131443299,25.78537028,140.14,140.13,2.3268202]
[1745131447541,108.18537028,140.14,140.13,2.3268202]
[1745131448440,108.18537028,140.14,140.13,1.8268202]
[1745131449010,108.18537028,140.14,140.13,9.43201943]
[1745131449335,108.18537028,140.14,140.13,1.8268202]
[1745131450831,25.78537028,140.14,140.13,1.8268202]
[1745131451414,25.78486113,140.15,140.13,1.8268202]
[1745131452918,33.39006036,140.15,140.13,1.8268202]
[1745131453723,25.78486113,140.15,140.13,1.8268202]
[1745131455518,43.62289181,140.15,140.11,7.60519923]
[1745131455714,18.64964886,140.13,140.11,7.60519923]
[1745131456540,7.13673993,140.12,140.11,7.60519923]
[1745131456735,7.13673993,140.12,140.1,7.60519923]
[1745131456946,7.13673993,140.12,140.11,7.60519923]
[1745131458539,7.13623064,140.13,140.11,7.60519923]
[1745131461128,7.13623064,140.13,140.07,13.88]
[1745131461342,101.04964886,140.12,140.09,7.60519923]
[1745131461655,101.04964886,140.12,140.07,13.88]
[1745131461862,101.04964886,140.12,140.09,7.60519923]
[1745131462970,7.1372493,140.11,140.07,13.88]
[1745131463145,7.1372493,140.11,140.09,7.60519923]
[1745131463352,7.1372493,140.11,140.1,7.60519923]
[1745131463530,7.1372493,140.11,140.09,7.60519923]
[1745131463731,7.1372493,140.11,140.07,13.88]
[1745131463958,7.1372493,140.11,140.09,7.60519923]
[1745131464550,7.1372493,140.11,140.1,7.60519923]
[1745131464753,101.04964886,140.12,140.1,7.60519923]
[1745131464754,82.4,140.12,140.1,7.60519923]
[1745131464938,89.53692036,140.12,140.11,7.60519923]
[1745131465739,18.64964886,140.14,140.11,7.60519923]
[1745131465740,7.13640207,140.13,140.11,7.60519923]
[1745131465932,7.13640207,140.13,140.08,30.42079692]
[1745131466134,7.13640207,140.13,140.12,7.60519923]
[1745131466537,7.13640207,140.13,140.07,16.73568998]
[1745131466853,7.13640207,140.13,140.11,7.60519923]
[1745131467052,7.13640207,140.13,140.07,16.73568998]
[1745131467248,7.13640207,140.13,140.12,7.60519923]
[1745131469256,7.1358758,140.14,140.12,7.60519923]
[1745131469461,7.1358758,140.14,140.13,7.60519923]
[1745131470039,82.4,140.15,140.13,7.60519923]
[1745131470040,89.53532576,140.15,140.13,7.60519923]
[1745131470239,89.53532576,140.15,140.09,1.2436]
[1745131470476,7.13532576,140.15,140.12,7.60519923]
[1745131470647,7.13532576,140.15,140.13,7.60519923]
[1745131471050,7.13532576,140.15,140.09,4.09887463]
[1745131471371,7.13532576,140.15,140.13,7.60519923]
[1745131475666,7.13419419,140.17,140.14,7.60519923]
[1745131475980,7.13419419,140.17,140.15,7.60519923]
[1745131478077,7.13419419,140.17,140.16,7.60519923]
[1745131481985,7.13419419,140.17,140.15,7.60519923]
[1745131482479,7.13419419,140.17,140.16,7.60519923]
[1745131484262,7.13419419,140.17,140.12,17.23468594]
[1745131484465,7.13419419,140.17,140.15,7.60519923]
[1745131487194,7.13419419,140.17,140.12,14.38]
[1745131487195,7.13419419,140.17,140.14,7.60519923]
[1745131488986,7.13419419,140.17,140.13,7.60519923]
[1745131489364,110.23114809,140.16,140.11,7.60519923]
[1745131489563,18.64964886,140.14,140.11,7.60519923]
[1745131489994,18.64964886,140.14,140.1,7.60519923]
[1745131490377,26.25484809,140.14,140.09,7.60519923]
[1745131490580,18.64964886,140.12,140.09,7.60519923]
[1745131490978,7.1372493,140.11,140.06,43.17590753]
[1745131491177,7.1372493,140.11,140.09,7.60519923]
[1745131492892,25.78653741,140.12,140.09,7.60519923]
[1745131493080,25.78653741,140.12,140.1,7.60519923]
[1745131493787,25.78653741,140.12,140.07,2.85566812]
[1745131493788,25.78653741,140.12,140.06,40.32]
[1745131493988,25.78653741,140.12,140.09,7.60519923]
[1745131495789,25.78653741,140.12,140.1,7.60519923]
[1745131497101,25.78653741,140.12,140.09,7.60519923]
[1745131498801,25.78653741,140.12,140.1,7.60519923]
[1745131500292,25.78653741,140.12,140.09,7.60519923]
[1745131501728,25.78653741,140.12,140.07,7.60519923]
[1745131501729,33.39173664,140.12,140.07,7.60519923]
[1745131501895,43.62838725,140.12,140.08,7.60519923]
[1745131502409,25.78653741,140.12,140.08,7.60519923]
[1745131503213,18.64964886,140.1,140.05,0.03]
[1745131503526,18.64964886,140.08,140.07,7.60519923]
[1745131505596,18.64964886,140.08,140.05,0.03]
[1745131506304,18.64964886,140.08,140.07,7.60519923]
[1745131507920,7.13795805,140.1,140.07,7.60519923]
[1745131508123,18.64964886,140.1,140.09,7.60519923]
[1745131509121,18.64964886,140.1,140.05,2.88596457]
[1745131509291,18.64964886,140.1,140.09,7.60519923]
[1745131509809,25.7874076,140.1,140.09,7.60519923]
[1745131510105,25.7874076,140.1,140.08,7.60519923]
[1745131511516,18.64964886,140.09,140.05,0.03]
[1745131511695,18.64964886,140.09,140.07,7.60519923]
[1745131513013,25.788049,140.09,140.07,7.60519923]
[1745131513413,25.788049,140.09,140.06,7.60519923]
[1745131515413,25.788049,140.09,140.05,0.03]
[1745131515414,25.788049,140.09,140.07,7.60519923]
[1745131520528,18.64964886,140.09,140.07,7.60519923]
[1745131520715,25.78795401,140.09,140.07,7.60519923]
[1745131520922,18.64964886,140.09,140.08,7.60519923]
[1745131523315,18.64964886,140.09,140.05,0.03]
[1745131523515,25.78803135,140.09,140.08,7.60519923]
[1745131526221,25.78803135,140.09,140.07,7.60519923]
[1745131531914,25.78803135,140.09,140.06,7.60519923]
[1745131533427,25.78803135,140.09,140.05,0.03]
[1745131533617,25.78803135,140.09,140.06,7.60519923]
[1745131533814,108.18803135,140.09,140.05,7.63519923]
[1745131534017,114.55343135,140.09,140.05,7.63519923]
[1745131534220,114.55343135,140.09,140.05,0.03]
[1745131534518,114.55343135,140.09,140.05,7.63519923]
[1745131536533,135.94343135,140.09,140.05,7.63519923]
[1745131536828,114.55343135,140.09,140.05,7.63519923]
[1745131537032,114.55343135,140.09,140.06,7.60519923]
[1745131537331,122.15863058,140.09,140.05,0.03]
[1745131537537,18.64964886,140.07,140.05,0.03]
[1745131538221,25.78914784,140.07,140.05,0.03]
[1745131539214,33.39434707,140.07,140.05,0.03]
[1745131539438,32.43884809,140.06,140.05,0.03]
[1745131540636,39.57864531,140.06,140.05,0.03]
[1745131541137,39.57864531,140.06,140.0,2.063]
[1745131541138,82.4,140.05,140.0,2.063]
[1745131541323,18.64964886,140.02,140.0,2.063]
[1745131541734,26.25484809,140.02,140.0,2.063]
[1745131542040,33.98714809,140.01,140.0,2.063]
[1745131542633,33.52429583,140.01,140.0,2.063]
[1745131544135,41.12949506,140.01,140.0,2.063]
[1745131545243,33.52429583,140.01,140.0,2.063]
[1745131546641,41.12949506,140.01,140.0,2.063]
[1745131546851,33.52429583,140.01,140.0,2.063]
[1745131547923,24.83364886,140.01,140.0,2.063]
[1745131548131,25.79199583,140.01,140.0,2.063]
[1745131548329,18.64964886,140.01,140.0,2.063]
[1745131549141,25.79199583,140.01,140.0,2.063]
[1745131549340,18.64964886,140.01,140.0,2.063]
[1745131549540,89.54192086,140.02,140.0,9.66819923]
[1745131549841,82.4,140.02,140.0,9.66819923]
[1745131550044,101.04964886,140.02,140.01,7.60519923]
[1745131550348,108.19148574,140.02,140.01,7.60519923]
[1745131550557,108.19148574,140.02,140.0,9.66819923]
[1745131551149,108.19148574,140.02,140.01,7.60519923]
[1745131551448,108.19148574,140.02,140.0,9.66819923]
[1745131552452,108.19148574,140.02,140.0,2.063]
[1745131552652,108.19148574,140.02,140.0,9.66819923]
[1745131553334,101.04964886,140.02,140.01,7.60519923]
[1745131553534,82.4,140.02,140.01,7.60519923]
[1745131554649,7.14047443,140.05,140.01,7.60519923]
[1745131554650,18.64964886,140.05,140.01,7.60519923]
[1745131554830,18.64964886,140.05,140.04,7.60519923]
[1745131555026,122.05587186,140.07,140.04,7.60519923]
[1745131555231,18.64964886,140.06,140.05,7.60519923]
[1745131555434,89.53947186,140.07,140.05,7.60519923]
[1745131555751,89.53947186,140.07,140.0,35.34078677]
[1745131555752,108.18912072,140.07,140.06,7.60519923]
[1745131557057,8.65055015,140.08,140.06,7.60519923]
[1745131557254,27.30019901,140.08,140.06,7.60519923]
[1745131558552,27.30019901,140.08,140.05,7.60519923]
[1745131560440,18.64964886,140.07,140.05,7.60519923]
[1745131562742,82.4,140.08,140.06,7.60519923]
[1745131562943,108.18844587,140.08,140.06,7.60519923]
[1745131566462,108.18844587,140.08,140.05,7.60519923]
[1745131568557,108.18844587,140.08,140.02,14.2]
[1745131568757,108.18844587,140.08,140.05,7.60519923]
[1745131569062,18.64964886,140.07,140.04,7.60519923]
[1745131571155,7.13979722,140.06,140.03,7.60519923]
[1745131571667,7.13979722,140.06,140.02,21.80519923]
[1745131571869,32.75554809,140.05,140.0,2.063]
[1745131572049,32.75554809,140.05,140.0,9.66819923]
[1745131572370,82.4,140.04,140.0,9.66819923]
[1745131573280,18.64964886,140.02,140.0,2.063]
[1745131573484,18.64964886,140.02,140.0,9.66819923]
[1745131575151,18.64964886,140.02,140.0,2.063]
[1745131575355,25.79199583,140.01,140.0,2.063]
[1745131576271,25.79199583,140.01,140.0,9.66819923]
[1745131576673,25.79199583,140.01,140.0,2.063]
[1745131576882,25.79199583,140.01,140.0,9.66819923]
[1745131577050,82.4,140.02,140.0,9.66819923]
[1745131577251,82.4,140.02,140.01,7.60519923]
[1745131577775,6.5007,140.05,140.01,7.60519923]
[1745131577953,6.5007,140.05,140.02,7.60519923]
[1745131578152,7.14047162,140.05,140.03,7.60519923]
[1745131579186,7.14047162,140.05,140.0,2.063]
[1745131579472,7.14047162,140.05,140.03,7.60519923]
[1745131581056,7.14047162,140.05,140.02,7.60519923]
[1745131581571,18.64964886,140.04,140.01,7.60519923]
[1745131582381,101.04964886,140.04,140.01,7.60519923]
[1745131582578,7.14132685,140.03,140.01,7.60519923]
[1745131583790,89.54083305,140.04,140.02,7.60519923]
[1745131583968,89.54083305,140.04,140.03,7.60519923]
[1745131586770,89.54083305,140.04,140.0,2.063]
[1745131586966,89.54083305,140.04,140.03,7.60519923]
[1745131587893,82.4,140.04,140.03,7.60519923]
[1745131588268,7.14015132,140.06,140.03,7.60519923]
[1745131588468,7.14015132,140.06,140.05,7.60519923]
[1745131588670,7.13946331,140.07,140.05,7.60519923]
[1745131588868,7.13946331,140.07,140.06,7.60519923]
[1745131589297,7.13946331,140.07,140.05,7.60519923]
[1745131590368,7.13946331,140.07,140.06,7.60519923]
[1745131590687,7.13946331,140.07,140.05,7.60519923]
[1745131591279,7.13946331,140.07,140.06,7.60519923]
[1745131592692,88.5471,140.08,140.06,7.60519923]
[1745131592897,88.5471,140.08,140.07,7.60519923]
[1745131593776,82.4,140.08,140.07,7.60519923]
[1745131594086,7.13871181,140.09,140.07,7.60519923]
[1745131598189,7.13871181,140.09,140.04,14.12]
[1745131598398,7.13871181,140.09,140.07,7.60519923]
[1745131599989,7.13871181,140.09,140.06,7.60519923]
[1745131600375,7.13871181,140.09,140.07,7.60519923]
[1745131601292,7.13871181,140.09,140.06,7.60519923]
[1745131603695,18.64964886,140.08,140.04,21.72519923]
[1745131603880,18.64964886,140.06,140.02,26.0]
[1745131604278,26.25484809,140.06,140.02,26.0]
[1745131604898,18.64964886,140.02,140.0,2.063]
[1745131605076,33.39719506,140.01,140.0,2.063]
[1745131605272,117.30779506,140.01,140.0,2.063]
[1745131605793,18.64964886,140.0,139.98,0.03]
[1745131605985,26.25484809,139.99,139.98,0.03]